{"text_format":"3","workbook":"xlsx","n_sheets":2,"sheets":["Lærerens liste"," Liste over data"],"not_rendered":{"defined_names":6},"read":"whole","date_system":"1900"}

{"sheet":"Lærerens liste","index":0,"n_rows":10,"n_cols":10,"rows_kept":10,"merged":[[0,1,0,2],[0,4,0,8],[2,9,6,9]]}
[null,"Lærerens liste",null,"Liste over data","Farveforklaring til Status er i denne celle: \"Ikke startet\" vises i normal typografi, \"Igangværende\" vises i R=91 G=133 B=49, \"Opgaver, der forfalder i dag\" vises i R=118 G=88 B=0, \"Udskudt\" vises i R=109 G=66 B=111, \"Fuldført\" bliver gennemstreget, \"Annulleret\" vises i R=191 G=191 B=191 og \"Overskredet\" vises i R=191 G=33 B=28."]
[null,"ELEMENT","KATEGORI","STARTDATO","FORFALDSDATO","RESTERENDE DAGE","STATUS","BEMÆRKNINGER"]
[null,"Ryd op i skuffer","Kontor",{"$f":"DATE(YEAR(TODAY()),MONTH(TODAY())-1,6)","v":"2018-04-06"},{"$f":"DATE(YEAR(TODAY()),MONTH(TODAY())-1,16)","v":"2018-04-16"},{"$f":"IFERROR(IF(COUNT(Liste[[#This Row],[STARTDATO]]:Liste[[#This Row],[FORFALDSDATO]])<>2,\"\",IF(OR(Liste[[#This Row],[STATUS]]=\"Fuldført\",Liste[[#This Row],[STATUS]]=\"Annulleret\",Liste[[#This Row],[STATUS]]=\"Udskudt\"),\"\",Liste[[#This Row],[FORFALDSDATO]]-TODAY())),\"\")","v":""},"Fuldført",null,null,"Statusudsnit er i denne celle. Du kan filtrere listen efter Status ved at vælge en status i udsnitsværktøjet. Tryk og hold Ctrl-tasten nede for at vælge flere indstillinger."]
[null,"Bestil klistermærker","Forsyninger",{"$f":"DATE(YEAR(TODAY()),MONTH(TODAY())-1,11)","v":"2018-04-11"},{"$f":"DATE(YEAR(TODAY()),MONTH(TODAY())-1,21)","v":"2018-04-21"},{"$f":"IFERROR(IF(COUNT(Liste[[#This Row],[STARTDATO]]:Liste[[#This Row],[FORFALDSDATO]])<>2,\"\",IF(OR(Liste[[#This Row],[STATUS]]=\"Fuldført\",Liste[[#This Row],[STATUS]]=\"Annulleret\",Liste[[#This Row],[STATUS]]=\"Udskudt\"),\"\",Liste[[#This Row],[FORFALDSDATO]]-TODAY())),\"\")","v":""},"Fuldført"]
[null,"Rengør og behandl gulve med voks","Andet",{"$f":"DATE(YEAR(TODAY()),MONTH(TODAY()-1),DAY(TODAY())-25)","v":"2018-04-15"},{"$f":"DATE(YEAR(TODAY()),MONTH(TODAY())-1,26)","v":"2018-04-26"},{"$f":"IFERROR(IF(COUNT(Liste[[#This Row],[STARTDATO]]:Liste[[#This Row],[FORFALDSDATO]])<>2,\"\",IF(OR(Liste[[#This Row],[STATUS]]=\"Fuldført\",Liste[[#This Row],[STATUS]]=\"Annulleret\",Liste[[#This Row],[STATUS]]=\"Udskudt\"),\"\",Liste[[#This Row],[FORFALDSDATO]]-TODAY())),\"\")","v":""},"Fuldført"]
[null,"Navnemærker er oprettet","Forsyninger",{"$f":"DATE(YEAR(TODAY()),MONTH(TODAY())-1,21)","v":"2018-04-21"},{"$f":"DATE(YEAR(TODAY()),MONTH(TODAY())-1,1)","v":"2018-04-01"},{"$f":"IFERROR(IF(COUNT(Liste[[#This Row],[STARTDATO]]:Liste[[#This Row],[FORFALDSDATO]])<>2,\"\",IF(OR(Liste[[#This Row],[STATUS]]=\"Fuldført\",Liste[[#This Row],[STATUS]]=\"Annulleret\",Liste[[#This Row],[STATUS]]=\"Udskudt\"),\"\",Liste[[#This Row],[FORFALDSDATO]]-TODAY())),\"\")","v":""},"Udskudt"]
[null,"Giv karakterer til semesterets skriveopgaver","Karaktergivning",{"$f":"DATE(YEAR(TODAY()),MONTH(TODAY())-1,26)","v":"2018-04-26"},{"$f":"TODAY()-5","v":"2018-05-05"},{"$f":"IFERROR(IF(COUNT(Liste[[#This Row],[STARTDATO]]:Liste[[#This Row],[FORFALDSDATO]])<>2,\"\",IF(OR(Liste[[#This Row],[STATUS]]=\"Fuldført\",Liste[[#This Row],[STATUS]]=\"Annulleret\",Liste[[#This Row],[STATUS]]=\"Udskudt\"),\"\",Liste[[#This Row],[FORFALDSDATO]]-TODAY())),\"\")","v":-5},"Overskredet"]
[null,"Mailpåmindelse om sedler til at få tilladelse fra forældre","Telefonopkald",{"$f":"DATE(YEAR(TODAY()),MONTH(TODAY()),1)","v":"2018-05-01"},{"$f":"TODAY()","v":"2018-05-10"},{"$f":"IFERROR(IF(COUNT(Liste[[#This Row],[STARTDATO]]:Liste[[#This Row],[FORFALDSDATO]])<>2,\"\",IF(OR(Liste[[#This Row],[STATUS]]=\"Fuldført\",Liste[[#This Row],[STATUS]]=\"Annulleret\",Liste[[#This Row],[STATUS]]=\"Udskudt\"),\"\",Liste[[#This Row],[FORFALDSDATO]]-TODAY())),\"\")","v":""},"Annulleret"]
[null,"Giv karakterer til mundtlige eksaminer","Kontor",{"$f":"DATE(YEAR(TODAY()),MONTH(TODAY()),7)","v":"2018-05-07"},{"$f":"DATE(YEAR(TODAY()),MONTH(TODAY()),17)","v":"2018-05-17"},{"$f":"IFERROR(IF(COUNT(Liste[[#This Row],[STARTDATO]]:Liste[[#This Row],[FORFALDSDATO]])<>2,\"\",IF(OR(Liste[[#This Row],[STATUS]]=\"Fuldført\",Liste[[#This Row],[STATUS]]=\"Annulleret\",Liste[[#This Row],[STATUS]]=\"Udskudt\"),\"\",Liste[[#This Row],[FORFALDSDATO]]-TODAY())),\"\")","v":7},"Igangværende"]
[null,"Spids blyanter","Forsyninger",{"$f":"DATE(YEAR(TODAY()),MONTH(TODAY()),11)","v":"2018-05-11"},{"$f":"DATE(YEAR(TODAY()),MONTH(TODAY()),10)","v":"2018-05-10"},{"$f":"IFERROR(IF(COUNT(Liste[[#This Row],[STARTDATO]]:Liste[[#This Row],[FORFALDSDATO]])<>2,\"\",IF(OR(Liste[[#This Row],[STATUS]]=\"Fuldført\",Liste[[#This Row],[STATUS]]=\"Annulleret\",Liste[[#This Row],[STATUS]]=\"Udskudt\"),\"\",Liste[[#This Row],[FORFALDSDATO]]-TODAY())),\"\")","v":0},"Igangværende"]

{"sheet":" Liste over data","index":1,"n_rows":13,"n_cols":3,"rows_kept":13}
[null,"Liste over data","Lærerens liste"]
[null,"Kategori"]
[null,"Kontor"]
[null,"Forsyninger"]
[null,"Indkøb"]
[null,"Telefonopkald"]
[null,"Nye idéer"]
[null,"Karaktergivning"]
[null,"Team"]
[null,"Indsatser"]
[null,"Computer"]
[null,"Personlig"]
[null,"Andet"]